bitfinex/quotes_ETHUSD_20230110
["timestamp","ask_amount","ask_price","bid_price","bid_amount"]
[1673327354581,6.12720226,1326.9,1326.8,0.00930209]
[1673327355288,13.66356226,1326.9,1326.8,0.00930209]
[1673327357379,13.66288481,1326.9,1326.8,0.00930209]
[1673327358839,16.48871788,1326.9,1326.8,0.00930209]
[1673327360029,13.66288481,1326.9,1326.8,0.00930209]
[1673327361161,16.48871788,1326.9,1326.8,0.00930209]
[1673327362959,21.19924481,1326.9,1326.8,0.00930209]
[1673327363640,31.56143788,1326.9,1326.8,0.00930209]
[1673327363851,34.29501525,1326.9,1326.8,0.00930209]
[1673327366635,13.89646218,1326.9,1326.8,0.00930209]
[1673327366942,3.62652481,1326.9,1326.8,0.00930209]
[1673327367100,3.56052481,1326.9,1326.8,0.00930209]
[1673327367316,13.59688481,1326.9,1326.8,0.00930209]
[1673327367557,11.16288481,1326.9,1326.8,0.00930209]
[1673327367959,13.16288481,1326.9,1326.8,0.00930209]
[1673327368197,6.7326286,1326.9,1326.8,0.00930209]
[1673327368789,21.8053486,1326.9,1326.8,0.00930209]
[1673327371310,24.63118167,1326.9,1326.8,0.00930209]
[1673327371944,21.8053486,1326.9,1326.8,0.00930209]
[1673327372837,24.63118167,1326.9,1326.8,0.00930209]
[1673327373043,21.8053486,1326.9,1326.8,0.00930209]
[1673327373428,21.8053486,1326.9,1326.8,0.00651568]
[1673327374795,19.59482167,1326.9,1326.8,0.00651568]
[1673327374988,27.13118167,1326.9,1326.8,0.00651568]
[1673327376078,19.59482167,1326.9,1326.8,0.00651568]
[1673327377091,27.13118167,1326.9,1326.8,0.00651568]
[1673327377350,24.87065686,1326.9,1326.8,0.00651568]
[1673327377758,27.13157624,1326.9,1326.8,0.00651568]
[1673327378401,19.59521624,1326.9,1326.8,0.00651568]
[1673327379196,35.29465791,1326.9,1326.8,5.68e-06]
[1673327379547,55.16297314,1326.9,1326.8,5.68e-06]
[1673327379873,54.60690595,1326.9,1326.8,5.68e-06]
[1673327380048,64.91670595,1326.9,1326.8,5.68e-06]
[1673327382819,64.91922766,1326.9,1326.8,5.68e-06]
[1673327386345,64.16434904,1326.9,1326.8,5.68e-06]
[1673327386548,64.91922766,1326.9,1326.8,5.68e-06]
[1673327388760,72.86222766,1326.9,1326.8,5.68e-06]
[1673327388975,62.4502416,1326.9,1326.8,5.68e-06]
[1673327389288,66.3955683,1326.9,1326.8,5.68e-06]
[1673327389820,62.4502416,1326.9,1326.8,5.68e-06]
[1673327391386,63.37339347,1326.9,1326.8,5.68e-06]
[1673327391604,66.75697694,1326.9,1326.8,5.68e-06]
[1673327393410,63.37339347,1326.9,1326.8,5.68e-06]
[1673327393820,25.51686,1326.8,1326.7,3.5e-07]
[1673327394033,56.76971734,1326.8,1326.7,3.5e-07]
[1673327394268,60.52459596,1326.8,1326.7,3.5e-07]
[1673327394695,61.82459596,1326.8,1326.7,3.5e-07]
[1673327401941,50.49851281,1326.8,1326.7,3.5e-07]
[1673327403622,53.88159596,1326.8,1326.7,3.5e-07]
[1673327404250,50.49851281,1326.8,1326.7,3.5e-07]
[1673327404464,53.88159596,1326.8,1326.7,3.5e-07]
[1673327405619,50.49851281,1326.8,1326.7,3.5e-07]
[1673327406005,48.80751281,1326.8,1326.7,3.5e-07]
[1673327406613,51.6252212,1326.8,1326.7,3.5e-07]
[1673327406859,48.80751281,1326.8,1326.7,3.5e-07]
[1673327407506,51.62523428,1326.8,1326.7,3.5e-07]
[1673327407681,48.80751281,1326.8,1326.7,3.5e-07]
[1673327408768,46.30811144,1326.8,1326.7,3.5e-07]
[1673327409607,46.07811144,1326.8,1326.7,3.5e-07]
[1673327410404,45.32323282,1326.8,1326.7,3.5e-07]
[1673327412932,43.63123282,1326.8,1326.7,3.5e-07]
[1673327414652,40.81308615,1326.8,1326.7,3.5e-07]
[1673327415920,44.1961693,1326.8,1326.7,3.5e-07]
[1673327417378,0.00268185,1326.7,1326.4,0.01978369]
[1673327417592,2.82226683,1326.6,1326.4,7.55898369]
[1673327417904,2.82297081,1326.6,1326.4,10.88084915]
[1673327418072,2.82297081,1326.6,1326.4,14.49268178]
[1673327418276,4.12297081,1326.6,1326.4,14.49268178]
[1673327418534,4.12297081,1326.6,1326.4,10.88084915]
[1673327418729,1.12958949,1326.5,1326.4,10.88084915]
[1673327418941,3.0593601,1326.6,1326.4,10.88084915]
[1673327419156,2.9933601,1326.6,1326.4,10.88084915]
[1673327419347,1.12959743,1326.5,1326.4,10.88084915]
[1673327419537,5.4933601,1326.6,1326.4,10.88084915]
[1673327419538,4.2593601,1326.6,1326.4,10.88084915]
[1673327419778,5.4933601,1326.6,1326.4,10.88084915]
[1673327419960,1.12962598,1326.5,1326.4,10.88084915]
[1673327420168,3.0593601,1326.6,1326.4,10.88084915]
[1673327420486,5.4933601,1326.6,1326.4,10.88084915]
[1673327420736,1.7593601,1326.6,1326.4,10.88084915]
[1673327420926,1.1296355,1326.5,1326.4,10.88084915]
[1673327421145,3.0593601,1326.6,1326.4,10.88084915]
[1673327421353,1.12963536,1326.5,1326.4,3.34164915]
[1673327421574,3.0593601,1326.6,1326.4,3.27564915]
[1673327421781,2.9933601,1326.6,1326.4,3.27564915]
[1673327422113,1.12964866,1326.5,1326.4,3.27564915]
[1673327422286,3.0593601,1326.6,1326.4,3.27564915]
[1673327422502,1.6933601,1326.6,1326.4,3.27564915]
[1673327422827,2.9933601,1326.6,1326.4,3.27564915]
[1673327423005,1.12965367,1326.5,1326.4,3.27564915]
[1673327423223,1.7593601,1326.6,1326.4,3.27564915]
[1673327423426,4.12299678,1326.6,1326.4,3.27564915]
[1673327423638,4.12299678,1326.6,1326.4,10.81484915]
[1673327423899,4.12299678,1326.6,1326.4,10.88084915]
[1673327424948,2.9933601,1326.6,1326.4,10.88084915]
[1673327425160,2.9933601,1326.6,1326.5,1.693]
[1673327425161,4.12299511,1326.6,1326.5,1.693]
[1673327425317,1.3,1326.6,1326.5,8.60249201]
[1673327425530,1.3,1326.6,1326.5,5.05594397]
[1673327425773,2.42962633,1326.6,1326.5,5.05594397]
[1673327425950,1.3,1326.6,1326.5,5.05594397]
[1673327426161,2.42940684,1326.6,1326.5,5.05594397]
[1673327426371,2.42939453,1326.6,1326.5,12.59457397]
[1673327426652,1.3,1326.6,1326.5,20.13320397]
[1673327426938,2.42939933,1326.6,1326.5,20.13320397]
[1673327427133,1.3,1326.6,1326.5,20.13320397]
[1673327427349,0.17762422,1326.6,1326.5,12.59457397]
[1673327427746,1.30701626,1326.6,1326.5,12.59457397]
[1673327427975,1.30701626,1326.6,1326.5,5.05594397]
[1673327428158,0.00268185,1326.7,1326.6,1.12939203]
[1673327428367,1.13207389,1326.7,1326.6,4.39385266]
[1673327429147,2.43207389,1326.7,1326.6,4.39385266]
[1673327429993,4.12543399,1326.7,1326.6,4.39385266]
[1673327430149,2.43207389,1326.7,1326.6,4.39385266]
[1673327431317,1.30268185,1326.7,1326.6,4.39385266]
[1673327432303,1.30268185,1326.7,1326.6,34.18711787]
[1673327432469,1.30268185,1326.7,1326.6,37.25311787]
[1673327433009,1.72173438,1326.7,1326.6,40.0586386]
[1673327433202,1.72173438,1326.7,1326.6,36.4529077]
[1673327433412,1.72173438,1326.7,1326.6,40.05863384]
[1673327433873,1.72173438,1326.7,1326.6,33.64739173]
[1673327434054,1.72173438,1326.7,1326.6,31.77703266]
[1673327434253,1.71796079,1326.7,1326.6,31.77703266]
[1673327438035,1.71796079,1326.7,1326.6,24.23897266]
[1673327440613,1.71796079,1326.7,1326.6,24.23697266]
[1673327440766,1.71796079,1326.7,1326.6,24.23897266]
[1673327446146,1.71796079,1326.7,1326.6,22.53397266]
[1673327448128,1.19539204,1326.9,1326.6,22.53397266]
[1673327448346,1.12939204,1326.9,1326.6,26.12089332]
[1673327448685,1.12939204,1326.9,1326.6,22.53397266]
[1673327449291,1.12939204,1326.9,1326.6,30.07203266]
[1673327449762,1.12939204,1326.9,1326.6,33.65895332]
[1673327450359,1.12939204,1326.9,1326.6,30.07203266]
[1673327451122,1.12939204,1326.9,1326.6,22.53397266]
[1673327452338,1.12939204,1326.9,1326.6,30.07203266]
[1673327452548,1.12939204,1326.9,1326.6,33.65895332]
[1673327452789,4.01717356,1327.0,1326.7,4.69]
[1673327452790,1.19539204,1327.0,1326.7,4.69]
[1673327453029,1.12939204,1327.0,1326.8,7.53693]
[1673327453338,1.12939204,1327.0,1326.8,15.13986]
[1673327453728,1.12939204,1327.0,1326.8,22.67679]
[1673327454382,1.12939204,1327.0,1326.8,15.13986]
[1673327454588,1.12939204,1327.0,1326.8,17.22701544]
[1673327454906,1.12939204,1327.0,1326.8,9.69008544]
[1673327455487,2.82275214,1327.0,1326.8,9.69008544]
[1673327459851,1.12939204,1326.9,1326.8,9.69008544]
[1673327460067,1.12939204,1326.9,1326.8,12.69008544]
[1673327461848,1.12939204,1326.9,1326.8,10.60293]
[1673327462006,2.82275214,1326.9,1326.8,3.066]
[1673327462237,2.82275214,1326.9,1326.8,3.0]
[1673327462801,2.82275214,1326.9,1326.7,3.066]
[1673327462977,1.12939204,1326.8,1326.7,3.0]
[1673327464024,1.12939204,1326.8,1326.7,4.230676]
[1673327465492,1.12939204,1326.8,1326.7,3.0]
[1673327465732,1.12939204,1326.8,1326.6,4.769]
[1673327465944,1.12939204,1326.7,1326.6,3.0]
[1673327467010,2.88875214,1326.8,1326.6,3.0]
[1673327467224,2.82275214,1326.8,1326.6,10.53806]
[1673327467411,1.12938045,1326.7,1326.6,10.60406]
[1673327467758,4.2593601,1326.8,1326.6,3.066]
[1673327467927,1.12938088,1326.7,1326.6,3.0]
[1673327468120,1.1294031,1326.7,1326.6,3.0]
[1673327468331,4.2593601,1326.8,1326.6,6.77120261]
[1673327468590,1.12940013,1326.7,1326.6,3.066]
[1673327468806,1.12940013,1326.7,1326.6,3.0]
[1673327468807,1.1294062,1326.7,1326.6,3.0]
[1673327469012,4.2593601,1326.8,1326.6,3.0]
[1673327469192,4.1933601,1326.8,1326.6,10.53806]
[1673327469541,4.1933601,1326.8,1326.6,3.066]
[1673327469751,2.82276413,1326.8,1326.6,3.0]
[1673327469971,1.12940403,1326.7,1326.6,21.20537013]
[1673327470182,1.6933601,1326.8,1326.6,23.14186603]
[1673327470394,2.82306701,1326.8,1326.6,13.73331013]
[1673327470694,1.12972336,1326.7,1326.6,6.19551013]
[1673327470911,1.6933601,1326.8,1326.6,6.19551013]
[1673327471127,1.12972366,1326.7,1326.6,6.19551013]
[1673327471282,1.12972372,1326.7,1326.6,6.19551013]
[1673327471495,1.6933601,1326.8,1326.6,8.06600687]
[1673327471746,1.6933601,1326.8,1326.6,6.19551013]
[1673327471747,1.12972148,1326.7,1326.6,6.19551013]
[1673327471953,1.12972475,1326.7,1326.6,6.19551013]
[1673327472136,1.12973793,1326.7,1326.6,8.06601255]
[1673327472342,1.12974574,1326.7,1326.6,6.19551013]
[1673327472587,1.6933601,1326.8,1326.6,6.19551013]
[1673327472968,1.12974223,1326.7,1326.6,6.19551013]
[1673327473205,1.6933601,1326.8,1326.6,6.19551013]
[1673327473417,1.12973512,1326.7,1326.6,6.19551013]
[1673327473592,1.6933601,1326.8,1326.6,8.06600895]
[1673327473803,1.12973538,1326.7,1326.6,6.19551013]
[1673327474087,1.6933601,1326.8,1326.6,6.19551013]
[1673327474589,1.12968487,1326.7,1326.6,6.19551013]
[1673327474905,1.6933601,1326.8,1326.6,6.19551013]
[1673327475273,1.12967809,1326.7,1326.6,6.19551013]
[1673327475511,1.6933601,1326.8,1326.6,8.0660026]
[1673327475725,1.12967814,1326.7,1326.6,6.19551013]
[1673327475915,1.12964929,1326.7,1326.6,6.19551013]
[1673327476138,1.7593601,1326.8,1326.6,15.60406275]
[1673327476351,1.1296484,1326.7,1326.6,13.73357013]
[1673327476559,1.12963918,1326.7,1326.6,8.06600278]
[1673327476775,1.1296393,1326.7,1326.6,8.06600278]
[1673327477010,2.25927861,1326.7,1326.6,8.06600278]
[1673327477177,2.25927861,1326.7,1326.6,6.19551013]
[1673327477178,1.1296393,1326.7,1326.6,6.19551013]
[1673327477585,2.25928836,1326.7,1326.6,6.19551013]
[1673327477808,1.1296393,1326.7,1326.6,6.19551013]
[1673327478267,2.25922923,1326.7,1326.6,6.19551013]
[1673327478480,1.1296393,1326.7,1326.6,6.19551013]
[1673327478633,2.25923419,1326.7,1326.6,6.19551013]
[1673327478845,1.1296393,1326.7,1326.6,6.19551013]
[1673327479177,1.1296393,1326.7,1326.6,15.6040598]
[1673327479383,2.25923648,1326.7,1326.6,13.73357013]
[1673327479622,2.25923649,1326.7,1326.6,13.73357013]
[1673327479792,2.25923656,1326.7,1326.6,13.73357013]
[1673327480009,2.25919472,1326.7,1326.6,13.73357013]
[1673327480212,1.1296393,1326.7,1326.6,15.60407583]
[1673327480438,1.1296393,1326.7,1326.6,15.60405964]
[1673327480629,1.1296393,1326.7,1326.6,23.14211964]
[1673327480857,1.1296393,1326.7,1326.6,15.60405964]
[1673327482103,1.1296393,1326.7,1326.6,8.06599964]
[1673327483095,1.1296393,1326.7,1326.6,6.19551013]
[1673327483313,2.25918028,1326.7,1326.6,6.19551013]
[1673327483518,1.1296393,1326.7,1326.6,6.19551013]
[1673327483788,2.25918062,1326.7,1326.6,6.19551013]
[1673327484158,3.38869621,1326.7,1326.6,3.06221732]
[1673327484419,3.38869639,1326.7,1326.6,2.99621732]
[1673327484584,2.25918062,1326.7,1326.6,2.99621732]
[1673327485012,3.38869652,1326.7,1326.6,2.99621732]
[1673327485312,3.38870395,1326.7,1326.6,2.99621732]
[1673327485554,2.25918062,1326.7,1326.6,2.99621732]
[1673327485742,3.38870401,1326.7,1326.6,2.99621732]
[1673327485955,2.25918062,1326.7,1326.6,2.99621732]
[1673327486200,3.38867783,1326.7,1326.6,2.99621732]
[1673327486410,3.38867771,1326.7,1326.6,2.99621732]
[1673327488200,3.38858484,1326.7,1326.6,2.99621732]
[1673327489005,3.38855999,1326.7,1326.6,2.99621732]
[1673327489319,3.38855999,1326.7,1326.6,4.86666827]
[1673327489320,2.25918062,1326.7,1326.6,4.86666827]
[1673327489534,2.25918062,1326.7,1326.6,12.40472827]
[1673327489758,2.25918062,1326.7,1326.6,12.47072827]
[1673327492297,2.25918062,1326.7,1326.6,16.3702091]
[1673327495137,2.25918062,1326.7,1326.6,31.4463291]
[1673327495352,2.25918062,1326.7,1326.6,34.25206901]
[1673327497007,2.25918062,1326.7,1326.6,35.37334913]
[1673327497433,2.25918062,1326.7,1326.6,34.25206901]
[1673327497783,2.25918062,1326.7,1326.6,26.71400901]
[1673327497998,2.25918062,1326.7,1326.6,35.37334913]
[1673327498310,2.25918062,1326.7,1326.6,27.83528913]
[1673327498466,2.25918062,1326.7,1326.6,29.52628913]
[1673327498882,2.25918062,1326.7,1326.6,37.06434913]
[1673327501208,2.25918062,1326.7,1326.6,29.52628913]
[1673327501984,2.25918062,1326.7,1326.6,37.06434913]
[1673327502360,2.25918062,1326.7,1326.6,29.52628913]
[1673327502611,2.25918062,1326.7,1326.6,37.06434913]
[1673327503102,2.25918062,1326.7,1326.6,35.37334913]
[1673327503320,2.25918062,1326.7,1326.6,27.83528913]
[1673327503721,2.25918062,1326.7,1326.6,26.71400901]
[1673327506608,2.25918062,1326.7,1326.6,27.83528913]
[1673327507039,2.25918062,1326.7,1326.6,26.71400901]
[1673327508819,2.25918062,1326.7,1326.6,27.83528913]
[1673327509452,2.25918062,1326.7,1326.6,25.02954922]
[1673327509838,2.25918062,1326.7,1326.6,27.83528913]
[1673327510552,2.25918062,1326.7,1326.6,26.71400901]
[1673327511029,2.25918062,1326.7,1326.6,27.83528913]
[1673327512288,2.25918062,1326.7,1326.6,26.71400901]
[1673327522796,2.25918062,1326.7,1326.6,23.9082691]
[1673327523013,3.38931836,1326.7,1326.6,23.9082691]
[1673327523170,2.25918062,1326.7,1326.6,12.47072827]
[1673327523637,3.38934515,1326.7,1326.6,12.47072827]
[1673327523909,3.38934506,1326.7,1326.6,12.47072827]
[1673327524135,3.38937374,1326.7,1326.6,12.47072827]
[1673327524483,2.25918062,1326.7,1326.6,20.00878827]
[1673327524907,3.3893883,1326.7,1326.6,20.00878827]
[1673327525217,2.25918062,1326.7,1326.6,20.00878827]
[1673327525536,3.38940834,1326.7,1326.6,4.93266827]
[1673327525759,3.38941462,1326.7,1326.6,4.86666827]
[1673327525901,3.3893829,1326.7,1326.6,4.86666827]
[1673327526111,2.25918062,1326.7,1326.6,4.86666827]
[1673327526850,3.38950099,1326.7,1326.6,4.86666827]
[1673327527092,3.38950087,1326.7,1326.6,4.86666827]
[1673327527283,2.25918062,1326.7,1326.6,4.86666827]
[1673327528052,5.08524449,1326.7,1326.6,4.86666827]
[1673327528266,4.02081903,1326.7,1326.6,4.86666827]
[1673327528478,5.08524467,1326.7,1326.6,4.86666827]
[1673327528656,5.15124474,1326.7,1326.6,4.86666827]
[1673327528861,3.45560629,1326.7,1326.6,4.86666827]
[1673327529083,5.08524497,1326.7,1326.6,4.86666827]
[1673327529426,5.1512444,1326.7,1326.6,4.86666827]
[1673327529584,2.32518062,1326.7,1326.6,4.86666827]
[1673327529801,2.25918062,1326.7,1326.6,4.86666827]
[1673327530022,3.38954444,1326.7,1326.6,4.86666827]
[1673327530236,3.38954444,1326.7,1326.6,12.40472827]
[1673327530237,2.25918062,1326.7,1326.6,12.40472827]
[1673327530458,3.38953649,1326.7,1326.6,12.47072827]
[1673327530676,3.38953652,1326.7,1326.6,12.47072827]
[1673327530884,3.38953655,1326.7,1326.6,12.47072827]
[1673327531212,2.25918062,1326.7,1326.6,12.47072827]
[1673327531731,3.38953774,1326.7,1326.6,12.47072827]
[1673327531953,2.25918062,1326.7,1326.6,12.47072827]
[1673327532108,2.25918062,1326.7,1326.6,10.60027732]
[1673327532320,5.08486362,1326.7,1326.6,3.06221732]
[1673327532528,6.4524808,1326.7,1326.6,2.99621732]
[1673327532771,8.71029426,1326.7,1326.5,0.066]
[1673327532963,2.82589553,1326.6,1326.4,3.94680372]
[1673327533190,1.73782473,1326.6,1326.4,1.14106381]
[1673327533408,1.73782473,1326.6,1326.4,0.01978369]
[1673327533409,1.13041078,1326.5,1326.4,0.01978369]
[1673327533581,20.6641562,1326.6,1326.4,1.89058519]
[1673327533793,1.13041449,1326.5,1326.4,0.01978369]
[1673327534164,26.43775443,1326.6,1326.4,0.01978369]
[1673327534314,25.30814274,1326.6,1326.4,0.01978369]
[1673327534527,26.43775544,1326.6,1326.4,0.01978369]
[1673327534734,2.5,1326.5,1326.4,0.01978369]
[1673327535052,4.02338824,1326.5,1326.4,0.01978369]
[1673327535280,4.58277554,1326.5,1326.4,0.01978369]
[1673327535624,7.40806476,1326.5,1326.4,0.01978369]
[1673327535789,5.77844675,1326.5,1326.4,0.01978369]
[1673327536261,5.78096846,1326.5,1326.4,0.01978369]
[1673327538240,4.64877554,1326.5,1326.4,0.01978369]
[1673327538462,24.74219594,1326.6,1326.4,0.01978369]
[1673327542933,2.5,1326.5,1326.4,0.01978369]
[1673327543185,24.74219594,1326.6,1326.4,0.01978369]
[1673327543349,2.5,1326.5,1326.4,0.01978369]
[1673327543581,24.74219594,1326.6,1326.4,0.01978369]
[1673327544241,0.05,1326.5,1326.4,0.01978369]
[1673327546192,24.74219594,1326.6,1326.4,0.01978369]
[1673327548771,2.5,1326.5,1326.4,0.01978369]
[1673327548941,5.22421959,1326.5,1326.4,0.01978369]
[1673327549152,2.79021959,1326.5,1326.4,0.01978369]
[1673327549373,2.72421959,1326.5,1326.4,0.01978369]
[1673327549587,6.91321959,1326.5,1326.4,0.01978369]
[1673327549778,6.97921959,1326.5,1326.4,0.01978369]
[1673327549995,4.47921959,1326.5,1326.4,0.01978369]
[1673327550204,4.41321959,1326.5,1326.4,0.01978369]
[1673327551335,1.689,1326.5,1326.4,0.01978369]
[1673327555546,1.689,1326.5,1326.4,0.01700472]
[1673327556623,1.739,1326.5,1326.4,0.01700472]
[1673327556958,2.01301079,1326.5,1326.4,0.01700472]
[1673327559088,20.1697,1326.6,1326.5,1.67141753]
[1673327559253,0.066,1326.6,1326.5,16.74867753]
[1673327559441,1.69517121,1326.7,1326.5,26.78751671]
[1673327559657,1.12967121,1326.7,1326.5,19.24888671]
[1673327560583,1.13167121,1326.7,1326.5,19.24688671]
[1673327560793,1.12967121,1326.7,1326.5,19.24888671]
[1673327560999,2.82528922,1326.7,1326.5,19.24888671]
[1673327561253,1.12967121,1326.7,1326.5,11.71025671]
[1673327561647,1.12967121,1326.7,1326.5,19.24888671]
[1673327563525,13.24288922,1326.8,1326.5,34.16540445]
[1673327563735,11.54727121,1326.8,1326.7,7.53749]
[1673327564000,1.19567121,1326.8,1326.7,7.60087269]
[1673327564155,1.12967121,1326.8,1326.7,7.60087269]
[1673327569482,2.82528922,1326.8,1326.7,7.60087269]
[1673327569631,1.12967121,1326.8,1326.7,7.60087269]
[1673327569843,1.12967121,1326.8,1326.7,0.06338269]
[1673327570049,4.51628922,1326.8,1326.6,3.0]
[1673327570296,4.51628922,1326.8,1326.6,18.07594]
[1673327570505,4.51628922,1326.8,1326.6,18.13932269]
[1673327571149,4.51628922,1326.8,1326.6,25.67738269]
[1673327571948,2.82067121,1326.8,1326.6,25.67738269]
[1673327572595,2.82067121,1326.8,1326.6,18.13932269]
[1673327573033,4.51628922,1326.8,1326.6,18.13932269]
[1673327573969,2.82067121,1326.8,1326.6,18.13932269]
[1673327574373,4.51628922,1326.8,1326.6,3.06338269]
[1673327574543,4.51628922,1326.8,1326.6,3.0]
[1673327576059,1.12967121,1326.7,1326.6,3.0]
[1673327583578,1.12967121,1326.7,1326.5,9.68090022]
[1673327583739,1.09402233,1326.6,1326.5,1.73480022]
[1673327583949,2.22369354,1326.6,1326.5,1.67141753]
[1673327585362,1.13269354,1326.6,1326.5,1.67141753]
[1673327587239,2.27352233,1326.6,1326.5,1.67141753]
[1673327587567,29.72675887,1326.6,1326.5,1.67141753]
[1673327587885,37.33081887,1326.6,1326.5,1.67141753]
[1673327588048,37.33081887,1326.6,1326.5,1.47668151]
[1673327588697,37.29414261,1326.6,1326.5,1.47668151]
[1673327588921,41.09180325,1326.6,1326.5,1.47668151]
[1673327589836,39.81984043,1326.6,1326.5,1.51e-06]
[1673327590081,49.17904043,1326.6,1326.4,0.01700472]
[1673327590268,32.62627515,1326.5,1326.4,0.01700472]
[1673327590504,38.84003739,1326.5,1326.4,0.01700472]
[1673327591544,40.53173186,1326.5,1326.4,0.01700472]
[1673327591757,44.3293925,1326.5,1326.4,0.01700472]
[1673327591965,44.55933267,1326.5,1326.4,0.01700472]
[1673327592171,44.55932807,1326.5,1326.4,0.01700472]
[1673327592352,44.55932684,1326.5,1326.4,0.01700472]
[1673327592565,33.4557509,1326.5,1326.4,0.01700472]
[1673327594362,31.19931169,1326.5,1326.4,0.01700472]
[1673327594980,31.14931169,1326.5,1326.4,0.01700472]
[1673327595191,23.61068169,1326.5,1326.4,0.01700472]
[1673327597555,24.73758683,1326.5,1326.4,0.01700472]
[1673327599935,23.04595802,1326.5,1326.4,0.01700472]
[1673327600361,24.73758683,1326.5,1326.4,0.01700472]
[1673327600568,32.27621683,1326.5,1326.4,0.01700472]
[1673327600783,24.73758683,1326.5,1326.4,0.01700472]
[1673327601460,24.7372038,1326.5,1326.4,0.01700472]
[1673327603286,23.61068169,1326.5,1326.4,0.01700472]
[1673327603967,31.14931169,1326.5,1326.4,0.01700472]
[1673327605711,32.27563769,1326.5,1326.4,0.01700472]
[1673327606140,31.14931169,1326.5,1326.4,0.01700472]
[1673327606349,23.61068169,1326.5,1326.4,0.01700472]
[1673327607211,31.14931169,1326.5,1326.4,0.01700472]
[1673327607382,24.73708111,1326.5,1326.4,0.01700472]
[1673327607806,23.61068169,1326.5,1326.4,0.01700472]
[1673327608545,31.14931169,1326.5,1326.4,0.01700472]
[1673327608866,23.61068169,1326.5,1326.4,0.01700472]
[1673327609330,45.26420546,1326.5,1326.4,0.01700472]
[1673327610224,37.72557546,1326.5,1326.4,0.01700472]
[1673327610434,37.77557546,1326.5,1326.4,0.01700472]
[1673327610982,34.21062952,1326.5,1326.4,0.01700472]
[1673327611187,37.77557546,1326.5,1326.4,0.01700472]
[1673327611394,34.21062952,1326.5,1326.4,0.01700472]
[1673327612328,41.74925952,1326.5,1326.4,0.01700472]
[1673327612538,34.21062952,1326.5,1326.4,0.01700472]
[1673327614041,32.51900071,1326.5,1326.4,0.01700472]
[1673327614465,32.46900071,1326.5,1326.4,0.01700472]
[1673327615916,38.85621348,1326.5,1326.4,0.01700472]
[1673327616138,35.29126754,1326.5,1326.4,0.01700472]
[1673327616367,35.29126754,1326.5,1326.4,0.01492695]
[1673327617004,44.13840427,1326.5,1326.4,0.01492695]
[1673327618750,46.39452342,1326.5,1326.4,0.01492695]
[1673327619813,44.13840427,1326.5,1326.4,0.01492695]
[1673327620023,40.57345833,1326.5,1326.4,0.01492695]
[1673327621842,44.13840427,1326.5,1326.4,0.01492695]
[1673327622743,32.27994971,1326.5,1326.4,0.01492695]
[1673327622969,26.99865132,1326.5,1326.4,0.01492695]
[1673327623157,34.53728132,1326.5,1326.4,0.01492695]
[1673327623379,17.01002132,1326.5,1326.4,0.01492695]
[1673327623840,14.18775449,1326.5,1326.4,0.01492695]
[1673327625495,14.75268971,1326.5,1326.4,0.01492695]
[1673327625936,15.56368971,1326.5,1326.4,0.01492695]
[1673327626257,38.74039603,1326.5,1326.4,0.01492695]
[1673327626632,42.30534197,1326.5,1326.4,0.01492695]
[1673327633251,38.74039603,1326.5,1326.4,0.01492695]
[1673327635810,42.30534197,1326.5,1326.4,0.01492695]
[1673327636734,42.30253547,1326.5,1326.4,0.01492695]
[1673327637917,43.05741409,1326.5,1326.4,0.01492695]
[1673327638505,44.74941409,1326.5,1326.4,0.01492695]
[1673327640660,43.99453547,1326.5,1326.4,0.01492695]
[1673327640873,44.74941409,1326.5,1326.4,0.01492695]
[1673327642819,41.36633094,1326.5,1326.4,0.01492695]
[1673327644194,45.31165764,1326.5,1326.4,0.01492695]
[1673327644438,41.36633094,1326.5,1326.4,0.01492695]
[1673327644655,44.36633094,1326.5,1326.4,0.01492695]
[1673327644820,2.5,1326.4,1326.2,0.80943225]
[1673327645031,21.70313926,1326.3,1326.2,0.80943225]
[1673327645236,21.76913926,1326.3,1326.2,0.80943225]
[1673327646394,24.02959427,1326.3,1326.2,0.80943225]
[1673327646605,21.76913926,1326.3,1326.2,0.80943225]
[1673327648643,31.80165208,1326.3,1326.2,0.80943225]
[1673327648818,33.81321325,1326.3,1326.2,0.80943225]
[1673327649026,36.07344744,1326.3,1326.2,0.80943225]
[1673327649248,33.81321325,1326.3,1326.2,0.80943225]
[1673327649464,36.07338823,1326.3,1326.2,0.80943225]
[1673327649894,33.81321325,1326.3,1326.2,0.80943225]
[1673327651162,26.27344325,1326.3,1326.2,0.80943225]
[1673327652389,13.45373622,1326.3,1326.2,0.80943225]
[1673327654019,12.9240633,1326.3,1326.2,0.80943225]
[1673327654236,4.02062881,1326.3,1326.2,0.80943225]
[1673327654396,1.69479584,1326.3,1326.2,0.80943225]
[1673327654763,2.82458116,1326.3,1326.2,0.80943225]
[1673327655082,1.69479584,1326.3,1326.2,0.80943225]
[1673327655601,3.95462881,1326.3,1326.2,0.80943225]
[1673327655814,21.13703361,1326.3,1326.2,0.80943225]
[1673327656025,21.20303361,1326.3,1326.2,0.80943225]
[1673327657366,13.66326361,1326.3,1326.2,0.80943225]
[1673327659418,7.81829057,1326.3,1326.2,0.80943225]
[1673327659593,6.12349361,1326.3,1326.2,0.80943225]
[1673327659986,13.66326361,1326.3,1326.2,0.80943225]
[1673327660191,15.35811824,1326.3,1326.2,0.80943225]
[1673327662185,15.34481819,1326.3,1326.2,0.80943225]
[1673327662971,13.64996356,1326.3,1326.2,0.80943225]
[1673327663352,15.34488236,1326.3,1326.2,0.80943225]
[1673327663578,15.34509894,1326.3,1326.2,0.80943225]
[1673327664205,4.0076683,1326.3,1326.2,0.80943225]
[1673327664532,1.69513538,1326.3,1326.2,0.80943225]
[1673327668423,27.13474862,1326.4,1326.2,0.80943225]
[1673327668630,30.93240926,1326.4,1326.2,0.80943225]
[1673327670319,4.76072371,1326.3,1326.2,0.80943225]
[1673327670524,3.95624883,1326.3,1326.2,0.80943225]
[1673327672437,1.69552512,1326.3,1326.2,0.80943225]
[1673327672885,3.95624883,1326.3,1326.2,0.80943225]
[1673327673100,1.69552512,1326.3,1326.2,0.80943225]
[1673327673273,3.95624883,1326.3,1326.2,0.80943225]
[1673327674984,1.69552512,1326.3,1326.2,0.80943225]
[1673327675354,3.95624883,1326.3,1326.2,0.80943225]
[1673327675840,1.69552512,1326.3,1326.2,0.80943225]
[1673327676004,3.95624883,1326.3,1326.2,0.80943225]
[1673327683507,3.95624883,1326.3,1326.2,0.80674895]
[1673327691340,2.26072371,1326.3,1326.2,0.80674895]
[1673327691792,5.08666233,1326.3,1326.2,0.80674895]
[1673327691989,5.15266233,1326.3,1326.2,0.80674895]
[1673327692740,2.89193862,1326.3,1326.2,0.80674895]
[1673327692952,2.82593862,1326.3,1326.2,0.80674895]
[1673327696091,5.08742238,1326.3,1326.2,0.80674895]
[1673327696435,5.15342238,1326.3,1326.2,0.80674895]
[1673327699999,2.89193862,1326.3,1326.2,0.80674895]
[1673327700200,5.50432218,1326.3,1326.2,0.80674895]
[1673327700377,5.57032218,1326.3,1326.2,0.80674895]
[1673327706619,5.57032218,1326.3,1326.2,0.80415763]
[1673327711038,30.10925235,1326.3,1326.2,0.80415763]
[1673327711233,27.11671055,1326.3,1326.2,0.80415763]
[1673327711423,23.7255842,1326.3,1326.2,0.80415763]